[Event "Rapid della Domenica"]
[Site "Chess.com"]
[Date "2020.06.07"]
[Round "3"]
[White "mr6701"]
[Black "crippo"]
[Result "1-0"]
[WhiteElo "1797"]
[BlackElo "1571"]
[TimeControl "720+3"]
[EndTime "7:05:15 PDT"]
[Termination "mr6701 ha vinto per abbandono"]

1. e4 {[%clk 0:12:02.9]} 1... e5 {[%clk 0:12:01.1]} 2. d4 {[%clk 0:12:04]} 2...
exd4 {[%clk 0:11:54.6]} 3. c3 {[%clk 0:12:06.2]} 3... d3 {[%clk 0:11:55.1]} 4.
Bxd3 {[%clk 0:12:08.2]} 4... d6 {[%clk 0:11:57.3]} 5. Nf3 {[%clk 0:12:10.3]}
5... Be7 {[%clk 0:11:57.8]} 6. Bc4 {[%clk 0:12:08.7]} 6... Nf6 {[%clk
0:11:59.6]} 7. Nbd2 {[%clk 0:12:02.6]} 7... O-O {[%clk 0:12:00.3]} 8. O-O {[%clk
0:12:04.5]} 8... Bg4 {[%clk 0:12:00.1]} 9. h3 {[%clk 0:12:05.9]} 9... Bh5 {[%clk
0:12:01.8]} 10. Qc2 {[%clk 0:12:06.1]} 10... Bg6 {[%clk 0:12:02.8]} 11. Bd3
{[%clk 0:12:06.9]} 11... Nc6 {[%clk 0:12:02.3]} 12. Nb3 {[%clk 0:12:04.2]} 12...
Bh5 {[%clk 0:11:53.1]} 13. Nfd4 {[%clk 0:12:01.7]} 13... Nd7 {[%clk 0:11:41.9]}
14. f4 {[%clk 0:11:30.5]} 14... Nxd4 {[%clk 0:11:00.9]} 15. cxd4 {[%clk
0:11:22.3]} 15... f6 {[%clk 0:10:54.3]} 16. e5 {[%clk 0:11:10]} 16... fxe5
{[%clk 0:10:53.2]} 17. Bxh7+ {[%clk 0:11:11.1]} 17... Kh8 {[%clk 0:10:53.6]} 18.
g4 {[%clk 0:10:21]} 18... Bf7 {[%clk 0:10:49.8]} 19. fxe5 {[%clk 0:09:55]} 19...
dxe5 {[%clk 0:10:48.9]} 20. Bg6 {[%clk 0:09:23.5]} 20... Bxb3 {[%clk 0:10:47.1]}
21. Rxf8+ {[%clk 0:09:00.6]} 21... Qxf8 {[%clk 0:10:47.8]} 22. Qxb3 {[%clk
0:09:00.7]} 22... exd4 {[%clk 0:10:34.1]} 23. Bf5 {[%clk 0:08:33.1]} 23... Nc5
{[%clk 0:10:16]} 24. Qg3 {[%clk 0:07:47.8]} 24... c6 {[%clk 0:09:17.3]} 25. Bf4
{[%clk 0:07:42.1]} 25... Qf6 {[%clk 0:07:53.1]} 26. Be5 {[%clk 0:06:56]} 26...
Qh4 {[%clk 0:07:52.4]} 27. Qxh4+ {[%clk 0:06:52.5]} 27... Bxh4 {[%clk
0:07:51.4]} 28. Bxd4 {[%clk 0:06:54.7]} 28... b6 {[%clk 0:07:50.2]} 29. b4
{[%clk 0:06:51.9]} 29... Na6 {[%clk 0:07:33.2]} 30. a3 {[%clk 0:06:51.6]} 30...
Rd8 {[%clk 0:07:29.3]} 31. Bc3 {[%clk 0:06:21.3]} 31... Nc7 {[%clk 0:07:21.3]}
32. Be1 {[%clk 0:06:06.9]} 32... Bxe1 {[%clk 0:07:06]} 33. Rxe1 {[%clk 0:06:08]}
33... Nd5 {[%clk 0:07:04.8]} 34. Re6 {[%clk 0:05:44.8]} 34... Nf4 {[%clk
0:07:04.8]} 35. Re7 {[%clk 0:05:46]} 35... g6 {[%clk 0:06:18.6]} 36. Be4 {[%clk
0:05:27.8]} 36... c5 {[%clk 0:06:04]} 37. bxc5 {[%clk 0:05:23.9]} 37... bxc5
{[%clk 0:06:04.1]} 38. Rxa7 {[%clk 0:05:25]} 38... Re8 {[%clk 0:05:57]} 39. Bc6
{[%clk 0:04:56.5]} 39... Re6 {[%clk 0:05:46.1]} 40. Bb5 {[%clk 0:04:44.7]} 40...
Nxh3+ {[%clk 0:05:43.7]} 41. Kh2 {[%clk 0:04:46.5]} 41... Ng5 {[%clk 0:05:43.6]}
42. Rc7 {[%clk 0:04:33.7]} 42... Re5 {[%clk 0:05:41.1]} 43. a4 {[%clk
0:04:32.8]} 43... Ne6 {[%clk 0:05:39.8]} 44. Re7 {[%clk 0:04:08.3]} 44... g5
{[%clk 0:05:40.1]} 45. Bd7 {[%clk 0:03:53.7]} 45... Re2+ {[%clk 0:05:41.2]} 46.
Kg1 {[%clk 0:03:51.1]} 46... Re4 {[%clk 0:05:12.9]} 47. Rxe6 {[%clk 0:03:39.8]}
47... Rxg4+ {[%clk 0:05:14]} 48. Kf2 {[%clk 0:03:40.9]} 48... Rb4 {[%clk
0:05:08.7]} 49. Re5 {[%clk 0:03:31.6]} 49... Rb7 {[%clk 0:05:04.7]} 50. Bb5
{[%clk 0:03:28.8]} 50... Rf7+ {[%clk 0:05:04.3]} 51. Kg3 {[%clk 0:03:25.8]}
51... c4 {[%clk 0:05:01.5]} 52. Bxc4 {[%clk 0:03:22.5]} 52... Rf4 {[%clk
0:04:58.7]} 53. Bb5 {[%clk 0:03:21.1]} 53... Rb4 {[%clk 0:04:57.3]} 54. Rxg5
{[%clk 0:03:22.1]} 54... Kh7 {[%clk 0:04:59.1]} 55. Rg4 {[%clk 0:03:15.5]} 55...
Rb3+ {[%clk 0:04:56.9]} 56. Kf4 {[%clk 0:03:15.5]} 56... Ra3 {[%clk 0:04:58.5]}
57. Ke5 {[%clk 0:03:14.5]} 57... Kh6 {[%clk 0:04:59.9]} 58. Rg1 {[%clk
0:03:15.5]} 58... Ra2 {[%clk 0:04:59.7]} 59. Kd4 {[%clk 0:03:15]} 59... Kh7
{[%clk 0:04:53.2]} 60. Kc5 {[%clk 0:03:14.5]} 60... Ra3 {[%clk 0:04:50.5]} 1-0

[Event "Rapid della Domenica"]
[Site "Chess.com"]
[Date "2020.06.07"]
[Round "3"]
[White "pedrak"]
[Black "APipitone"]
[Result "1-0"]
[WhiteElo "1718"]
[BlackElo "1658"]
[TimeControl "720+3"]
[EndTime "7:06:56 PDT"]
[Termination "pedrak ha vinto per tempo"]

1. d4 {[%clk 0:12:02.9]} 1... Nf6 {[%clk 0:11:59.7]} 2. Nf3 {[%clk 0:11:58.6]}
2... d5 {[%clk 0:11:59.5]} 3. Bf4 {[%clk 0:11:58.4]} 3... Nc6 {[%clk 0:11:57.2]}
4. c3 {[%clk 0:11:59]} 4... g6 {[%clk 0:11:54.2]} 5. h3 {[%clk 0:11:59.1]} 5...
Bg7 {[%clk 0:11:51.8]} 6. e3 {[%clk 0:12:00.1]} 6... O-O {[%clk 0:11:49.8]} 7.
Ne5 {[%clk 0:12:01.1]} 7... Nxe5 {[%clk 0:11:38.2]} 8. Bxe5 {[%clk 0:12:02]}
8... Be6 {[%clk 0:11:19.4]} 9. Nd2 {[%clk 0:12:01.5]} 9... c6 {[%clk 0:11:17.2]}
10. Be2 {[%clk 0:11:58]} 10... Nd7 {[%clk 0:11:13.5]} 11. Bxg7 {[%clk
0:11:58.6]} 11... Kxg7 {[%clk 0:11:13.2]} 12. O-O {[%clk 0:11:59.8]} 12... Nf6
{[%clk 0:10:56]} 13. Bf3 {[%clk 0:11:55.8]} 13... Qd7 {[%clk 0:10:50.3]} 14. Kh2
{[%clk 0:11:16]} 14... Bf5 {[%clk 0:10:35.9]} 15. Qe2 {[%clk 0:11:12.5]} 15...
Rfe8 {[%clk 0:10:12.1]} 16. Rfe1 {[%clk 0:09:33.2]} 16... e5 {[%clk 0:10:06.1]}
17. dxe5 {[%clk 0:09:29.5]} 17... Rxe5 {[%clk 0:10:06.1]} 18. Nb3 {[%clk
0:09:18.5]} 18... Rae8 {[%clk 0:09:44.6]} 19. Rad1 {[%clk 0:09:13.4]} 19... Qd6
{[%clk 0:09:00.1]} 20. Kg1 {[%clk 0:08:48.7]} 20... b5 {[%clk 0:08:40]} 21. Nd4
{[%clk 0:08:31.4]} 21... Bd7 {[%clk 0:07:28.6]} 22. b4 {[%clk 0:07:50.4]} 22...
Rg5 {[%clk 0:06:28.8]} 23. Kh1 {[%clk 0:07:31.4]} 23... Ne4 {[%clk 0:06:02.7]}
24. Bxe4 {[%clk 0:07:21.1]} 24... Rxe4 {[%clk 0:06:01.4]} 25. Nf3 {[%clk
0:07:12.5]} 25... Rh5 {[%clk 0:05:41.5]} 26. Ng1 {[%clk 0:05:58.5]} 26... Reh4
{[%clk 0:03:32]} 27. Rd4 {[%clk 0:04:55.8]} 27... Rxd4 {[%clk 0:02:01.5]} 28.
exd4 {[%clk 0:04:50.3]} 28... Qf4 {[%clk 0:00:56.9]} 29. Qe3 {[%clk 0:04:37.2]}
29... Qf5 {[%clk 0:00:17]} 30. Qe5+ {[%clk 0:03:57.2]} 30... Qxe5 {[%clk
0:00:16.4]} 31. dxe5 {[%clk 0:03:47.9]} 31... Be6 {[%clk 0:00:17]} 32. f4 {[%clk
0:03:43.2]} 32... Rf5 {[%clk 0:00:12.5]} 33. g3 {[%clk 0:03:40.9]} 33... h5
{[%clk 0:00:11.7]} 34. h4 {[%clk 0:03:41.4]} 34... f6 {[%clk 0:00:08.9]} 35.
exf6+ {[%clk 0:03:42]} 35... Kxf6 {[%clk 0:00:10.1]} 36. Nf3 {[%clk 0:03:40.3]}
36... a6 {[%clk 0:00:07.6]} 37. Nd4 {[%clk 0:03:40.7]} 1-0

[Event "Rapid della Domenica"]
[Site "Chess.com"]
[Date "2020.06.07"]
[Round "3"]
[White "fausto2p"]
[Black "sirmale49"]
[Result "1-0"]
[WhiteElo "1234"]
[BlackElo "1372"]
[TimeControl "720+3"]
[EndTime "7:12:22 PDT"]
[Termination "fausto2p ha vinto per abbandono"]

1. d4 {[%clk 0:12:02.9]} 1... Nc6 {[%clk 0:11:56.4]} 2. c4 {[%clk 0:11:54.2]}
2... e5 {[%clk 0:11:49]} 3. dxe5 {[%clk 0:11:31.4]} 3... Bb4+ {[%clk 0:11:38.1]}
4. Bd2 {[%clk 0:11:15]} 4... Qe7 {[%clk 0:11:29.4]} 5. Nf3 {[%clk 0:10:57.8]}
5... d6 {[%clk 0:11:07.2]} 6. Bxb4 {[%clk 0:10:40.5]} 6... Nxb4 {[%clk
0:10:59.9]} 7. Qa4+ {[%clk 0:10:18.1]} 7... Nc6 {[%clk 0:10:59.4]} 8. exd6
{[%clk 0:09:51.6]} 8... Qxd6 {[%clk 0:10:37.2]} 9. e3 {[%clk 0:09:40.2]} 9...
Bd7 {[%clk 0:10:20.2]} 10. Qc2 {[%clk 0:09:16.3]} 10... O-O-O {[%clk 0:10:01]}
11. Nc3 {[%clk 0:09:04.2]} 11... Be6 {[%clk 0:09:08.4]} 12. Rd1 {[%clk
0:08:53.8]} 12... Qe7 {[%clk 0:08:43.8]} 13. Rxd8+ {[%clk 0:08:51.7]} 13... Kxd8
{[%clk 0:08:37.7]} 14. a3 {[%clk 0:08:00.6]} 14... Nf6 {[%clk 0:08:36.2]} 15.
Be2 {[%clk 0:07:41.6]} 15... Bg4 {[%clk 0:08:16.4]} 16. O-O {[%clk 0:07:31.2]}
16... Kc8 {[%clk 0:08:13.5]} 17. h3 {[%clk 0:07:08]} 17... Bh5 {[%clk
0:08:03.1]} 18. Qf5+ {[%clk 0:06:39.5]} 18... Qe6 {[%clk 0:07:20.1]} 19. Qxe6+
{[%clk 0:06:32.8]} 19... fxe6 {[%clk 0:07:19.5]} 20. Rd1 {[%clk 0:06:08.9]}
20... Rd8 {[%clk 0:06:43.4]} 21. Rxd8+ {[%clk 0:06:07.3]} 21... Kxd8 {[%clk
0:06:42.8]} 22. b4 {[%clk 0:05:42]} 22... Ne7 {[%clk 0:06:08.4]} 23. g4 {[%clk
0:05:30.7]} 23... Bg6 {[%clk 0:05:50.7]} 24. Ng5 {[%clk 0:05:09.1]} 24... Kd7
{[%clk 0:05:31.3]} 25. c5 {[%clk 0:04:43]} 25... h6 {[%clk 0:05:30.6]} 26. Nf3
{[%clk 0:04:11.5]} 26... c6 {[%clk 0:05:28.7]} 27. Ne5+ {[%clk 0:04:01.2]} 27...
Kc7 {[%clk 0:05:23.2]} 28. Nxg6 {[%clk 0:03:48.2]} 28... Nxg6 {[%clk 0:05:24.5]}
29. Bc4 {[%clk 0:03:35.1]} 29... Kd7 {[%clk 0:05:09.1]} 30. f4 {[%clk
0:03:16.9]} 30... Ne7 {[%clk 0:04:49.9]} 31. Kf2 {[%clk 0:03:05]} 31... Nfd5
{[%clk 0:04:42.1]} 32. Nxd5 {[%clk 0:03:02]} 32... Nxd5 {[%clk 0:04:28.4]} 33.
Kf3 {[%clk 0:02:22.4]} 33... Nc3 {[%clk 0:04:17.2]} 34. Bd3 {[%clk 0:02:06.2]}
34... b6 {[%clk 0:03:56.2]} 35. cxb6 {[%clk 0:01:53.3]} 35... axb6 {[%clk
0:03:57.3]} 36. e4 {[%clk 0:01:42.8]} 36... Kd6 {[%clk 0:03:16.7]} 37. f5 {[%clk
0:01:24.9]} 37... exf5 {[%clk 0:03:07.1]} 38. gxf5 {[%clk 0:01:18.6]} 38... Ke5
{[%clk 0:03:07.5]} 39. h4 {[%clk 0:01:09]} 39... Na4 {[%clk 0:02:51]} 40. Ba6
{[%clk 0:00:58]} 40... c5 {[%clk 0:01:59.8]} 41. bxc5 {[%clk 0:00:51.3]} 41...
Nxc5 {[%clk 0:02:00.7]} 42. Bc4 {[%clk 0:00:45.9]} 42... Nd7 {[%clk 0:01:43.7]}
43. Bd5 {[%clk 0:00:37.5]} 43... Nf6 {[%clk 0:01:40.7]} 44. a4 {[%clk
0:00:30.8]} 44... Nxd5 {[%clk 0:00:47.1]} 45. exd5 {[%clk 0:00:31.2]} 45... Kxd5
{[%clk 0:00:48.8]} 46. Kg4 {[%clk 0:00:32.3]} 46... Kd6 {[%clk 0:00:43]} 47. Kh5
{[%clk 0:00:32.1]} 47... Ke7 {[%clk 0:00:43.8]} 48. Kg6 {[%clk 0:00:32.6]} 48...
Kf8 {[%clk 0:00:45.1]} 49. h5 {[%clk 0:00:27]} 49... Kg8 {[%clk 0:00:42.3]} 50.
f6 {[%clk 0:00:27.6]} 50... gxf6 {[%clk 0:00:40.7]} 51. Kxf6 {[%clk 0:00:29.2]}
51... Kh7 {[%clk 0:00:38.9]} 52. Ke6 {[%clk 0:00:27.4]} 52... Kg7 {[%clk
0:00:40.3]} 53. Kd6 {[%clk 0:00:28.3]} 53... Kf7 {[%clk 0:00:42.1]} 54. Kc6
{[%clk 0:00:29.7]} 54... Ke8 {[%clk 0:00:40.3]} 55. Kxb6 {[%clk 0:00:31.2]}
55... Kd8 {[%clk 0:00:41.8]} 56. Kb7 {[%clk 0:00:32.6]} 56... Kd7 {[%clk
0:00:41.2]} 57. a5 {[%clk 0:00:34.4]} 57... Ke6 {[%clk 0:00:40.2]} 58. a6 {[%clk
0:00:36.1]} 58... Kf5 {[%clk 0:00:41.9]} 59. a7 {[%clk 0:00:37.9]} 59... Kg5
{[%clk 0:00:43.6]} 60. a8=Q {[%clk 0:00:39]} 60... Kxh5 {[%clk 0:00:45.2]} 61.
Qh8 {[%clk 0:00:39.5]} 61... Kg5 {[%clk 0:00:46.1]} 62. Kc6 {[%clk 0:00:40.8]}
62... h5 {[%clk 0:00:46.4]} 63. Kd5 {[%clk 0:00:42.5]} 63... Kg4 {[%clk
0:00:48.1]} 64. Ke4 {[%clk 0:00:43.4]} 64... h4 {[%clk 0:00:49.9]} 65. Qg7+
{[%clk 0:00:42.3]} 65... Kh3 {[%clk 0:00:50.7]} 66. Kf3 {[%clk 0:00:42.3]} 1-0

[Event "Rapid della Domenica"]
[Site "Chess.com"]
[Date "2020.06.07"]
[Round "4"]
[White "APipitone"]
[Black "fausto2p"]
[Result "0-1"]
[WhiteElo "1641"]
[BlackElo "1249"]
[TimeControl "720+3"]
[EndTime "7:18:08 PDT"]
[Termination "fausto2p ha vinto per abbandono"]

1. e4 {[%clk 0:12:02.9]} 1... e6 {[%clk 0:11:59.8]} 2. d4 {[%clk 0:12:03.4]}
2... d5 {[%clk 0:12:01.5]} 3. Nc3 {[%clk 0:12:03.3]} 3... c5 {[%clk 0:11:58.5]}
4. exd5 {[%clk 0:12:02.6]} 4... exd5 {[%clk 0:11:59]} 5. Nf3 {[%clk 0:12:00.2]}
5... cxd4 {[%clk 0:11:54.3]} 6. Nxd4 {[%clk 0:11:57.3]} 6... Nf6 {[%clk
0:11:52.5]} 7. Bd3 {[%clk 0:11:54.4]} 7... Bd6 {[%clk 0:11:43.8]} 8. O-O {[%clk
0:11:51.1]} 8... O-O {[%clk 0:11:44.7]} 9. Bg5 {[%clk 0:11:47.6]} 9... Nbd7
{[%clk 0:11:11.6]} 10. Nxd5 {[%clk 0:11:38.6]} 10... Qa5 {[%clk 0:10:42.9]} 11.
Nxf6+ {[%clk 0:10:39.7]} 11... Nxf6 {[%clk 0:10:38.7]} 12. Bxf6 {[%clk
0:10:36.3]} 12... gxf6 {[%clk 0:10:19.9]} 13. Qf3 {[%clk 0:10:20.9]} 13... Qe5
{[%clk 0:10:16.7]} 14. Qh3 {[%clk 0:10:04.6]} 14... Bxh3 {[%clk 0:10:07.5]} 0-1

[Event "Rapid della Domenica"]
[Site "Chess.com"]
[Date "2020.06.07"]
[Round "4"]
[White "crippo"]
[Black "SanSecondoPR"]
[Result "1-0"]
[WhiteElo "1575"]
[BlackElo "1361"]
[TimeControl "720+3"]
[EndTime "7:24:01 PDT"]
[Termination "crippo ha vinto per abbandono"]

1. e4 {[%clk 0:12:02.9]} 1... e5 {[%clk 0:11:53.7]} 2. Nc3 {[%clk 0:12:04.6]}
2... Nc6 {[%clk 0:11:53]} 3. d3 {[%clk 0:12:06.5]} 3... g6 {[%clk 0:11:51.6]} 4.
Be3 {[%clk 0:12:08.2]} 4... Bg7 {[%clk 0:11:51.8]} 5. Be2 {[%clk 0:12:03.1]}
5... Nge7 {[%clk 0:11:51.1]} 6. h4 {[%clk 0:12:03.1]} 6... d5 {[%clk 0:11:46.6]}
7. exd5 {[%clk 0:11:48.3]} 7... Nxd5 {[%clk 0:11:46.7]} 8. Nxd5 {[%clk
0:11:49.4]} 8... Qxd5 {[%clk 0:11:45.5]} 9. Bf3 {[%clk 0:11:50.2]} 9... Qb5
{[%clk 0:11:28.1]} 10. Ne2 {[%clk 0:11:47.7]} 10... Nd4 {[%clk 0:11:13.2]} 11.
Bxd4 {[%clk 0:11:46.5]} 11... exd4 {[%clk 0:11:08.2]} 12. O-O {[%clk 0:11:47.4]}
12... h5 {[%clk 0:10:40.4]} 13. b3 {[%clk 0:11:43.3]} 13... Bg4 {[%clk
0:10:34.6]} 14. Nf4 {[%clk 0:11:43.9]} 14... O-O-O {[%clk 0:10:27.1]} 15. Bxg4+
{[%clk 0:11:36.5]} 15... hxg4 {[%clk 0:10:19.2]} 16. Qxg4+ {[%clk 0:11:37.3]}
16... Kb8 {[%clk 0:10:11.2]} 17. a4 {[%clk 0:11:37.6]} 17... Qf5 {[%clk
0:09:38.4]} 18. Qxf5 {[%clk 0:11:36.9]} 18... gxf5 {[%clk 0:09:36.5]} 19. g3
{[%clk 0:11:38.7]} 19... Bh6 {[%clk 0:09:27.4]} 20. Nh3 {[%clk 0:11:38.6]} 20...
Bd2 {[%clk 0:09:15.7]} 21. Rad1 {[%clk 0:11:38.9]} 21... Bc3 {[%clk 0:09:15.7]}
22. Kg2 {[%clk 0:11:36.9]} 22... Rdg8 {[%clk 0:09:06.2]} 23. Kf3 {[%clk
0:11:37.9]} 23... Rg4 {[%clk 0:08:13.8]} 24. Nf4 {[%clk 0:11:37.1]} 24... Bb4
{[%clk 0:07:59.2]} 25. Nd5 {[%clk 0:11:36.9]} 25... Bd6 {[%clk 0:07:51.2]} 26.
Rfe1 {[%clk 0:11:35.3]} 26... Rd8 {[%clk 0:07:24.9]} 27. Nf6 {[%clk 0:11:36.6]}
27... Rg6 {[%clk 0:07:07.4]} 28. Ne8 {[%clk 0:11:37.3]} 28... Bb4 {[%clk
0:06:40.3]} 29. Re2 {[%clk 0:11:37.8]} 29... Rg8 {[%clk 0:06:25.9]} 30. Nf6
{[%clk 0:11:36.3]} 30... Rg6 {[%clk 0:06:13.3]} 31. Nh5 {[%clk 0:11:31.8]} 31...
a5 {[%clk 0:05:48.6]} 32. Nf4 {[%clk 0:11:27.7]} 32... Rg4 {[%clk 0:05:31.1]}
33. Re5 {[%clk 0:11:28.3]} 33... Be1 {[%clk 0:05:06.1]} 34. Rxf5 {[%clk
0:11:29]} 1-0

[Event "Rapid della Domenica"]
[Site "Chess.com"]
[Date "2020.06.07"]
[Round "4"]
[White "mr6701"]
[Black "pedrak"]
[Result "1-0"]
[WhiteElo "1813"]
[BlackElo "1712"]
[TimeControl "720+3"]
[EndTime "7:41:34 PDT"]
[Termination "mr6701 ha vinto per abbandono"]

1. e4 {[%clk 0:12:02.9]} 1... e6 {[%clk 0:11:57.8]} 2. d4 {[%clk 0:12:04.7]}
2... d5 {[%clk 0:11:58.5]} 3. Nc3 {[%clk 0:12:06.8]} 3... dxe4 {[%clk 0:11:52]}
4. Nxe4 {[%clk 0:12:05.3]} 4... Bd7 {[%clk 0:11:52.6]} 5. Nf3 {[%clk 0:12:06.3]}
5... Bc6 {[%clk 0:11:50.1]} 6. Bd3 {[%clk 0:12:07.6]} 6... Bxe4 {[%clk
0:11:50.5]} 7. Bxe4 {[%clk 0:12:08.7]} 7... c6 {[%clk 0:11:52.2]} 8. O-O {[%clk
0:12:06.6]} 8... Nf6 {[%clk 0:11:53.4]} 9. Bd3 {[%clk 0:12:05.9]} 9... Be7
{[%clk 0:11:52.8]} 10. c3 {[%clk 0:12:01.6]} 10... Nbd7 {[%clk 0:11:54.1]} 11.
Qc2 {[%clk 0:12:03.3]} 11... Qc7 {[%clk 0:11:45]} 12. Bg5 {[%clk 0:12:02.1]}
12... h6 {[%clk 0:11:45.5]} 13. Bh4 {[%clk 0:12:02.8]} 13... Bd6 {[%clk
0:11:43.8]} 14. Rae1 {[%clk 0:11:57.6]} 14... O-O-O {[%clk 0:11:29.7]} 15. c4
{[%clk 0:11:40.6]} 15... g5 {[%clk 0:10:55.1]} 16. Bg3 {[%clk 0:11:36.7]} 16...
Bxg3 {[%clk 0:10:55.5]} 17. hxg3 {[%clk 0:11:39.6]} 17... Kb8 {[%clk 0:10:46.5]}
18. b4 {[%clk 0:10:58.6]} 18... Rdg8 {[%clk 0:10:16.3]} 19. a4 {[%clk
0:10:44.6]} 19... h5 {[%clk 0:10:14.7]} 20. b5 {[%clk 0:10:45.2]} 20... h4
{[%clk 0:10:10.9]} 21. bxc6 {[%clk 0:10:14.7]} 21... Qxc6 {[%clk 0:10:08.8]} 22.
Be4 {[%clk 0:08:36.5]} 22... Nxe4 {[%clk 0:09:59.8]} 23. Qxe4 {[%clk 0:08:32.9]}
23... Qxe4 {[%clk 0:09:45.4]} 24. Rxe4 {[%clk 0:08:34.4]} 24... h3 {[%clk
0:08:50.3]} 25. gxh3 {[%clk 0:08:25.7]} 25... Rxh3 {[%clk 0:08:50]} 26. Kg2
{[%clk 0:08:16.5]} 26... Rh5 {[%clk 0:08:25.6]} 27. g4 {[%clk 0:08:00.3]} 27...
Rh6 {[%clk 0:07:55.7]} 28. Ne5 {[%clk 0:08:00.9]} 28... Nxe5 {[%clk 0:07:48.5]}
29. Rxe5 {[%clk 0:08:00.5]} 29... Rgh8 {[%clk 0:06:35]} 30. Rxg5 {[%clk
0:07:57.3]} 30... Rh2+ {[%clk 0:06:35.4]} 31. Kf3 {[%clk 0:07:59]} 31... R8h3+
{[%clk 0:06:36.6]} 32. Ke4 {[%clk 0:07:56.3]} 32... Rc3 {[%clk 0:06:13.9]} 33.
c5 {[%clk 0:07:53]} 33... Rc2 {[%clk 0:06:14.1]} 34. Ke3 {[%clk 0:07:24]} 34...
Rh3+ {[%clk 0:05:58.5]} 35. Kf4 {[%clk 0:07:10]} 35... Rcc3 {[%clk 0:05:46.1]}
36. f3 {[%clk 0:07:00.8]} 36... Rc4 {[%clk 0:05:40.9]} 37. Ke4 {[%clk
0:06:50.2]} 37... Rh2 {[%clk 0:05:14.7]} 38. Re1 {[%clk 0:06:39.2]} 38... Rd2
{[%clk 0:05:10.8]} 39. Ke5 {[%clk 0:06:22.2]} 39... Rdxd4 {[%clk 0:05:11.8]} 40.
Kf6 {[%clk 0:05:43.3]} 40... Rf4+ {[%clk 0:05:12.3]} 41. Ke7 {[%clk 0:05:45.3]}
41... Rxf3 {[%clk 0:04:58.2]} 42. Rd1 {[%clk 0:05:39.9]} 42... Kc7 {[%clk
0:04:50.7]} 43. Rd7+ {[%clk 0:05:07.2]} 43... Kc6 {[%clk 0:04:51.1]} 44. Rd6+
{[%clk 0:05:09.1]} 44... Kc7 {[%clk 0:04:52.3]} 45. a5 {[%clk 0:05:00]} 45... b6
{[%clk 0:04:42.2]} 46. axb6+ {[%clk 0:04:47]} 46... axb6 {[%clk 0:04:43.8]} 47.
cxb6+ {[%clk 0:04:35.2]} 47... Kb7 {[%clk 0:04:44.3]} 48. Ra5 {[%clk 0:04:36.6]}
48... Rc8 {[%clk 0:04:23.6]} 49. Ra7+ {[%clk 0:04:23.6]} 49... Kb8 {[%clk
0:04:21.1]} 50. Rdd7 {[%clk 0:04:23.6]} 50... Rg8 {[%clk 0:03:18]} 51. g5 {[%clk
0:02:48.8]} 51... Rf1 {[%clk 0:02:33.1]} 52. Rac7 {[%clk 0:02:24]} 52... Rb1
{[%clk 0:02:14.6]} 53. Kxf7 {[%clk 0:02:14.5]} 53... Rh8 {[%clk 0:02:13.6]} 54.
g6 {[%clk 0:02:14]} 54... Rf1+ {[%clk 0:01:30]} 55. Kxe6 {[%clk 0:02:12.2]}
55... Re8+ {[%clk 0:01:27.1]} 56. Re7 {[%clk 0:02:07.6]} 56... Rg8 {[%clk
0:01:20.2]} 57. g7 {[%clk 0:02:03.5]} 57... Rb1 {[%clk 0:01:20.1]} 58. b7 {[%clk
0:01:59.5]} 58... Rg1 {[%clk 0:00:34.5]} 59. Rf7 {[%clk 0:01:52.8]} 59... Re1+
{[%clk 0:00:27]} 60. Kf6 {[%clk 0:01:46.5]} 60... Rf1+ {[%clk 0:00:28.4]} 61.
Kg6 {[%clk 0:01:48.6]} 61... Rg1+ {[%clk 0:00:20.6]} 62. Kh7 {[%clk 0:01:45.7]}
62... Rd8 {[%clk 0:00:21.5]} 63. Rc8+ {[%clk 0:01:43.4]} 63... Rxc8 {[%clk
0:00:21.6]} 64. bxc8=Q+ {[%clk 0:01:44.1]} 64... Kxc8 {[%clk 0:00:22.8]} 65.
g8=Q+ {[%clk 0:01:45.7]} 1-0